[Event "Early-Titled-Tuesday-Blitz-February-27-2024"]
[Site "Chess.com"]
[Date "2024.02.27"]
[Round "4"]
[White "GoValya"]
[Black "amelia91"]
[Result "1-0"]
[WhiteElo "2274"]
[BlackElo "1979"]
[TimeControl "180+1"]
[EndTime "8:38:14 PST"]
[Termination "GoValya won on time"]

1. d4 {[%clk 0:03:00.9]} 1... Nf6 {[%clk 0:02:58.2]} 2. Nf3 {[%clk 0:03:01.1]}
2... e6 {[%clk 0:02:58.2]} 3. g3 {[%clk 0:03:01.5]} 3... d5 {[%clk 0:02:58.2]}
4. Bg2 {[%clk 0:03:01.7]} 4... c5 {[%clk 0:02:58.4]} 5. O-O {[%clk 0:03:02.4]}
5... Nc6 {[%clk 0:02:58.6]} 6. c4 {[%clk 0:03:01.7]} 6... cxd4 {[%clk
0:02:57.3]} 7. Nxd4 {[%clk 0:02:56.8]} 7... Bc5 {[%clk 0:02:57.1]} 8. Nxc6
{[%clk 0:02:56.1]} 8... bxc6 {[%clk 0:02:58]} 9. cxd5 {[%clk 0:02:56.5]} 9...
cxd5 {[%clk 0:02:57.7]} 10. Qc2 {[%clk 0:02:56.9]} 10... Bb6 {[%clk 0:02:55.3]}
11. a4 {[%clk 0:02:48.6]} 11... O-O {[%clk 0:02:53.8]} 12. Nc3 {[%clk
0:02:45.1]} 12... Ba6 {[%clk 0:02:51.8]} 13. Rd1 {[%clk 0:02:43.8]} 13... Rc8
{[%clk 0:02:51.4]} 14. Qd2 {[%clk 0:02:28.1]} 14... Qc7 {[%clk 0:02:42.5]} 15.
h3 {[%clk 0:01:26.4]} 15... Rfd8 {[%clk 0:02:40.1]} 16. Qe1 {[%clk 0:01:01.2]}
16... Ba5 {[%clk 0:02:22.7]} 17. Bd2 {[%clk 0:00:54.1]} 17... Bc4 {[%clk
0:02:13.3]} 18. Nb5 {[%clk 0:00:49.7]} 18... Bxd2 {[%clk 0:02:08.6]} 19. Qxd2
{[%clk 0:00:36.7]} 19... Qb6 {[%clk 0:02:04.7]} 20. Nd4 {[%clk 0:00:32.6]} 20...
e5 {[%clk 0:01:57.1]} 21. Nf5 {[%clk 0:00:32.5]} 21... Rb8 {[%clk 0:01:49.8]}
22. Qg5 {[%clk 0:00:29.6]} 22... g6 {[%clk 0:01:34.4]} 23. a5 {[%clk 0:00:29.6]}
23... Qe6 {[%clk 0:01:34.2]} 24. Nh6+ {[%clk 0:00:25]} 24... Kh8 {[%clk
0:01:31.9]} 25. Rd2 {[%clk 0:00:17.7]} 25... Rd6 {[%clk 0:01:11.7]} 26. Rad1
{[%clk 0:00:17]} 26... Ng8 {[%clk 0:00:58.4]} 27. Ng4 {[%clk 0:00:16.2]} 27...
f6 {[%clk 0:00:53.6]} 28. Qe3 {[%clk 0:00:15.8]} 28... f5 {[%clk 0:00:45.7]} 29.
Nxe5 {[%clk 0:00:15.2]} 29... Bb3 {[%clk 0:00:37.2]} 30. Qd4 {[%clk 0:00:13.1]}
30... Nf6 {[%clk 0:00:30.1]} 31. Rc1 {[%clk 0:00:12.1]} 31... Ra6 {[%clk
0:00:24]} 32. f4 {[%clk 0:00:10.9]} 32... Rxa5 {[%clk 0:00:23]} 33. Rc7 {[%clk
0:00:09.4]} 33... Ra4 {[%clk 0:00:15.9]} 34. Qc3 {[%clk 0:00:07.9]} 34... Qb6+
{[%clk 0:00:11.3]} 35. Kh2 {[%clk 0:00:07.5]} 35... d4 {[%clk 0:00:03]} 36. Qc1
{[%clk 0:00:05.2]} 1-0

[Event "Early-Titled-Tuesday-Blitz-February-27-2024"]
[Site "Chess.com"]
[Date "2024.02.27"]
[Round "4"]
[White "KuzubovYuriy"]
[Black "jk13"]
[Result "1-0"]
[WhiteElo "2961"]
[BlackElo "2698"]
[TimeControl "180+1"]
[EndTime "8:38:15 PST"]
[Termination "KuzubovYuriy won by resignation"]

1. d4 {[%clk 0:03:00.9]} 1... Nf6 {[%clk 0:02:59.8]} 2. Nf3 {[%clk 0:03:01.2]}
2... e6 {[%clk 0:03:00.5]} 3. c4 {[%clk 0:03:01.1]} 3... Bb4+ {[%clk 0:03:00.7]}
4. Bd2 {[%clk 0:03:01]} 4... Bxd2+ {[%clk 0:03:01]} 5. Qxd2 {[%clk 0:03:01.1]}
5... O-O {[%clk 0:03:01.9]} 6. Nc3 {[%clk 0:03:00.9]} 6... d5 {[%clk 0:03:02.8]}
7. e3 {[%clk 0:03:00.7]} 7... Qe7 {[%clk 0:03:03.5]} 8. Be2 {[%clk 0:02:56.3]}
8... dxc4 {[%clk 0:03:03.6]} 9. Bxc4 {[%clk 0:02:56.4]} 9... Rd8 {[%clk
0:03:04.5]} 10. O-O {[%clk 0:02:53.9]} 10... c5 {[%clk 0:03:05.4]} 11. Qe2
{[%clk 0:02:54.3]} 11... Nc6 {[%clk 0:03:05.4]} 12. dxc5 {[%clk 0:02:53.8]}
12... Qxc5 {[%clk 0:03:05.2]} 13. Rac1 {[%clk 0:02:51.6]} 13... Bd7 {[%clk
0:03:02.7]} 14. Nb5 {[%clk 0:02:48.8]} 14... Qe7 {[%clk 0:02:38.1]} 15. Bd3
{[%clk 0:02:38]} 15... Nb4 {[%clk 0:02:28.3]} 16. Bb1 {[%clk 0:02:36.4]} 16...
a6 {[%clk 0:02:20.5]} 17. Nc3 {[%clk 0:02:29.3]} 17... Rac8 {[%clk 0:02:12.8]}
18. h3 {[%clk 0:02:28.2]} 18... h6 {[%clk 0:02:12.3]} 19. Rfd1 {[%clk
0:02:20.7]} 19... Be8 {[%clk 0:02:09.4]} 20. Nd4 {[%clk 0:02:19.6]} 20... Nbd5
{[%clk 0:02:06.2]} 21. Nxd5 {[%clk 0:02:14.9]} 21... Nxd5 {[%clk 0:02:07.1]} 22.
Be4 {[%clk 0:02:14.5]} 22... Nf6 {[%clk 0:02:02.9]} 23. Bf3 {[%clk 0:02:09.4]}
23... g6 {[%clk 0:01:58.1]} 24. g3 {[%clk 0:02:00.1]} 24... e5 {[%clk
0:01:48.1]} 25. Nb3 {[%clk 0:02:00.1]} 25... e4 {[%clk 0:01:36.4]} 26. Bg2
{[%clk 0:01:59.7]} 26... Bb5 {[%clk 0:01:34.3]} 27. Qe1 {[%clk 0:01:58.8]} 27...
Bd3 {[%clk 0:01:23]} 28. Rxc8 {[%clk 0:01:52.6]} 28... Rxc8 {[%clk 0:01:22.9]}
29. Rc1 {[%clk 0:01:53.4]} 29... Rc7 {[%clk 0:01:05.8]} 30. Nd4 {[%clk
0:01:48.2]} 30... Kg7 {[%clk 0:01:03.6]} 31. Rc3 {[%clk 0:01:42.6]} 31... Rc5
{[%clk 0:00:48.9]} 32. Qc1 {[%clk 0:01:37.5]} 32... b6 {[%clk 0:00:45.9]} 33. b4
{[%clk 0:01:33]} 33... Rxc3 {[%clk 0:00:44.8]} 34. Qxc3 {[%clk 0:01:33.9]} 34...
h5 {[%clk 0:00:41.1]} 35. a3 {[%clk 0:01:32.4]} 35... Kh7 {[%clk 0:00:38.9]} 36.
Qc6 {[%clk 0:01:28.4]} 36... a5 {[%clk 0:00:30.7]} 37. Qxb6 {[%clk 0:01:26.9]}
37... axb4 {[%clk 0:00:31.4]} 38. Qxb4 {[%clk 0:01:25.8]} 38... Qc7 {[%clk
0:00:30.7]} 39. Qb2 {[%clk 0:01:23.1]} 39... Qa5 {[%clk 0:00:28.6]} 40. Qc1
{[%clk 0:01:19.6]} 40... Nd5 {[%clk 0:00:28]} 41. h4 {[%clk 0:01:15.1]} 41...
Nc3 {[%clk 0:00:27.5]} 42. Kh2 {[%clk 0:01:11.9]} 42... Na2 {[%clk 0:00:20.2]}
43. Qb2 {[%clk 0:01:09]} 43... Nc3 {[%clk 0:00:19.7]} 44. Qb7 {[%clk 0:01:04.9]}
44... Kg8 {[%clk 0:00:18.4]} 45. Qc8+ {[%clk 0:01:00.8]} 45... Kg7 {[%clk
0:00:17.7]} 46. Nb3 {[%clk 0:00:57.7]} 46... Qe5 {[%clk 0:00:16.8]} 47. Qc5
{[%clk 0:00:57.5]} 47... Qf6 {[%clk 0:00:15.9]} 48. Qd4 {[%clk 0:00:57.7]} 48...
Na4 {[%clk 0:00:13.7]} 49. Kg1 {[%clk 0:00:56.4]} 49... Qxd4 {[%clk 0:00:13.1]}
50. Nxd4 {[%clk 0:00:56.4]} 50... Kf6 {[%clk 0:00:14]} 51. Bh3 {[%clk
0:00:55.7]} 51... Ke5 {[%clk 0:00:13.4]} 52. Bd7 {[%clk 0:00:55.7]} 52... Nc5
{[%clk 0:00:13.8]} 53. Be8 {[%clk 0:00:56]} 53... Kf6 {[%clk 0:00:13.5]} 54. a4
{[%clk 0:00:53.4]} 54... Ke7 {[%clk 0:00:14]} 55. Bc6 {[%clk 0:00:53]} 55... Kd6
{[%clk 0:00:13.4]} 56. a5 {[%clk 0:00:52.6]} 56... Kc7 {[%clk 0:00:09.3]} 57.
Be8 {[%clk 0:00:52.5]} 57... Nb7 {[%clk 0:00:03.3]} 58. Bxf7 {[%clk 0:00:52.2]}
58... Nxa5 {[%clk 0:00:03.8]} 59. Bxg6 {[%clk 0:00:52.6]} 59... Kd6 {[%clk
0:00:03.9]} 60. Bxh5 {[%clk 0:00:53]} 1-0

[Event "Early-Titled-Tuesday-Blitz-February-27-2024"]
[Site "Chess.com"]
[Date "2024.02.27"]
[Round "4"]
[White "falzehope0"]
[Black "DeArron_Fox"]
[Result "0-1"]
[WhiteElo "2346"]
[BlackElo "2526"]
[TimeControl "180+1"]
[EndTime "8:38:15 PST"]
[Termination "DeArron_Fox won by resignation"]

1. d4 {[%clk 0:03:00.9]} 1... d5 {[%clk 0:02:34.4]} 2. e3 {[%clk 0:03:01.8]}
2... Nf6 {[%clk 0:02:34.5]} 3. Bd3 {[%clk 0:03:01.3]} 3... c5 {[%clk 0:02:34.6]}
4. c3 {[%clk 0:03:01.4]} 4... Nc6 {[%clk 0:02:29.9]} 5. f4 {[%clk 0:03:01.6]}
5... g6 {[%clk 0:02:28.7]} 6. Nf3 {[%clk 0:03:00.8]} 6... Bg7 {[%clk 0:02:29.3]}
7. O-O {[%clk 0:03:00.8]} 7... O-O {[%clk 0:02:29.9]} 8. Nbd2 {[%clk 0:03:01]}
8... Bf5 {[%clk 0:02:30.2]} 9. Bxf5 {[%clk 0:03:01]} 9... gxf5 {[%clk
0:02:31.1]} 10. b3 {[%clk 0:03:00.5]} 10... Ne4 {[%clk 0:02:27.4]} 11. Nxe4
{[%clk 0:02:59.5]} 11... fxe4 {[%clk 0:02:02.1]} 12. Ne5 {[%clk 0:02:59.9]}
12... Nxe5 {[%clk 0:02:01.6]} 13. fxe5 {[%clk 0:02:58.7]} 13... f6 {[%clk
0:01:57.7]} 14. e6 {[%clk 0:02:56.1]} 14... Qe8 {[%clk 0:01:35.2]} 15. Ba3
{[%clk 0:02:51.5]} 15... cxd4 {[%clk 0:01:28]} 16. Qxd4 {[%clk 0:02:50.7]} 16...
Qc6 {[%clk 0:01:07]} 17. Rf5 {[%clk 0:02:35.4]} 17... Qxe6 {[%clk 0:00:57.4]}
18. Qxd5 {[%clk 0:02:31.6]} 18... Qxd5 {[%clk 0:00:55.8]} 19. Rxd5 {[%clk
0:02:32.5]} 19... Rfd8 {[%clk 0:00:54.8]} 20. Rxd8+ {[%clk 0:02:25.6]} 20...
Rxd8 {[%clk 0:00:55.7]} 21. Bxe7 {[%clk 0:02:24.1]} 21... Rd3 {[%clk 0:00:55.4]}
22. c4 {[%clk 0:02:22.7]} 22... Rxe3 {[%clk 0:00:28.8]} 23. Bc5 {[%clk 0:02:20]}
23... Re2 {[%clk 0:00:28.2]} 24. Bxa7 {[%clk 0:02:19.8]} 24... f5 {[%clk
0:00:28.3]} 25. Rc1 {[%clk 0:02:08.2]} 25... Rxa2 {[%clk 0:00:25.2]} 26. Bf2
{[%clk 0:02:04.9]} 26... Rb2 {[%clk 0:00:17.4]} 27. c5 {[%clk 0:02:05]} 27...
Rxb3 {[%clk 0:00:14.4]} 28. Bg3 {[%clk 0:02:03.7]} 28... Bd4+ {[%clk 0:00:10.8]}
29. Kf1 {[%clk 0:02:03.2]} 29... Rc3 {[%clk 0:00:07.6]} 30. Rb1 {[%clk
0:01:59.9]} 30... Rxc5 {[%clk 0:00:03.9]} 31. Rxb7 {[%clk 0:01:59.9]} 31... Rc1+
{[%clk 0:00:04.5]} 32. Ke2 {[%clk 0:02:00.2]} 32... Rc2+ {[%clk 0:00:05.1]} 33.
Kf1 {[%clk 0:02:00.6]} 33... Rc1+ {[%clk 0:00:02.1]} 34. Ke2 {[%clk 0:02:00.1]}
34... Rg1 {[%clk 0:00:03]} 35. Rd7 {[%clk 0:01:53.5]} 35... Rxg2+ {[%clk
0:00:02.7]} 36. Kf1 {[%clk 0:01:53.5]} 36... Rd2 {[%clk 0:00:03.3]} 37. Be5
{[%clk 0:01:45.3]} 37... Be3 {[%clk 0:00:02.5]} 38. Rb7 {[%clk 0:01:40.7]} 38...
Rd1+ {[%clk 0:00:02.3]} 39. Ke2 {[%clk 0:01:40.3]} 39... Rd5 {[%clk 0:00:03.2]}
40. Bb2 {[%clk 0:01:35.5]} 40... Bd4 {[%clk 0:00:03]} 41. Ba3 {[%clk 0:01:33.8]}
41... Rd8 {[%clk 0:00:02]} 42. Rb1 {[%clk 0:01:34.7]} 42... Re8 {[%clk
0:00:01.7]} 43. Rd1 {[%clk 0:01:35.3]} 43... Be5 {[%clk 0:00:01.5]} 44. Rd7
{[%clk 0:01:35.8]} 44... Rb8 {[%clk 0:00:01.2]} 45. Bc1 {[%clk 0:01:34.8]} 45...
Bf6 {[%clk 0:00:01.5]} 46. h3 {[%clk 0:01:34.5]} 46... Ra8 {[%clk 0:00:02.1]}
47. Bh6 {[%clk 0:01:34.2]} 47... Ra2+ {[%clk 0:00:02.6]} 48. Ke3 {[%clk
0:01:34.3]} 48... Ra3+ {[%clk 0:00:02.1]} 49. Kf4 {[%clk 0:01:34.9]} 49... e3
{[%clk 0:00:02.6]} 50. Kxf5 {[%clk 0:01:33.4]} 50... e2 {[%clk 0:00:02.8]} 51.
Kxf6 {[%clk 0:01:30.7]} 51... Ra6+ {[%clk 0:00:02.3]} 52. Kg5 {[%clk 0:01:30.1]}
52... e1=Q {[%clk 0:00:02.1]} 53. Rd8+ {[%clk 0:01:29.5]} 53... Kf7 {[%clk
0:00:02.3]} 54. Rf8+ {[%clk 0:01:29.9]} 54... Ke7 {[%clk 0:00:02.9]} 55. Rf4
{[%clk 0:01:27.6]} 55... Ra5+ {[%clk 0:00:02.5]} 56. Kg4 {[%clk 0:01:27.4]}
56... Qg1+ {[%clk 0:00:02.7]} 57. Kh4 {[%clk 0:01:26.9]} 57... Qe1+ {[%clk
0:00:02.3]} 58. Kg4 {[%clk 0:01:26.6]} 58... Ra4 {[%clk 0:00:02.6]} 59. Kf5
{[%clk 0:01:27.5]} 59... Rxf4+ {[%clk 0:00:02]} 60. Bxf4 {[%clk 0:01:28.4]}
60... Qd1 {[%clk 0:00:02.5]} 61. Kg5 {[%clk 0:01:28.1]} 61... Kf7 {[%clk
0:00:03.3]} 62. Kf5 {[%clk 0:01:27.8]} 62... Qd5+ {[%clk 0:00:03.6]} 63. Kg4
{[%clk 0:01:28.1]} 63... Qe6+ {[%clk 0:00:04.5]} 64. Kf3 {[%clk 0:01:28.6]}
64... Qf5 {[%clk 0:00:04.8]} 65. Kg3 {[%clk 0:01:29.5]} 65... Ke6 {[%clk
0:00:04.8]} 66. Kf3 {[%clk 0:01:30.4]} 66... Kd5 {[%clk 0:00:05.7]} 67. Ke3
{[%clk 0:01:30.9]} 67... Qxh3+ {[%clk 0:00:05.3]} 68. Bg3 {[%clk 0:01:31.6]}
68... h5 {[%clk 0:00:06]} 69. Kf2 {[%clk 0:01:31.5]} 69... Qg4 {[%clk
0:00:06.4]} 70. Bh2 {[%clk 0:01:31.4]} 70... h4 {[%clk 0:00:06.4]} 71. Bb8
{[%clk 0:01:30.6]} 71... h3 {[%clk 0:00:07.3]} 72. Kf1 {[%clk 0:01:29.2]} 72...
Qg2+ {[%clk 0:00:07.7]} 73. Ke1 {[%clk 0:01:29.4]} 73... Kc4 {[%clk 0:00:08.2]}
74. Kd1 {[%clk 0:01:29.6]} 74... Kd3 {[%clk 0:00:09.1]} 75. Ke1 {[%clk
0:01:27.3]} 75... Qc2 {[%clk 0:00:10]} 76. Kf1 {[%clk 0:01:27.1]} 76... Qg2+
{[%clk 0:00:10.6]} 0-1

[Event "Early-Titled-Tuesday-Blitz-February-27-2024"]
[Site "Chess.com"]
[Date "2024.02.27"]
[Round "4"]
[White "Larina_Maria"]
[Black "tarno17"]
[Result "1-0"]
[WhiteElo "2312"]
[BlackElo "2145"]
[TimeControl "180+1"]
[EndTime "8:38:15 PST"]
[Termination "Larina_Maria won on time"]

1. e4 {[%clk 0:03:00.9]} 1... c5 {[%clk 0:02:56.9]} 2. Nc3 {[%clk 0:03:00.4]}
2... e6 {[%clk 0:02:53.1]} 3. Nf3 {[%clk 0:02:59.9]} 3... a6 {[%clk 0:02:53.2]}
4. d4 {[%clk 0:03:00.3]} 4... cxd4 {[%clk 0:02:54.1]} 5. Nxd4 {[%clk 0:03:00.8]}
5... Qc7 {[%clk 0:02:54.8]} 6. g3 {[%clk 0:03:01.2]} 6... b5 {[%clk 0:02:55.5]}
7. Bg2 {[%clk 0:03:01.6]} 7... Bb7 {[%clk 0:02:56.2]} 8. O-O {[%clk 0:03:01.6]}
8... Nc6 {[%clk 0:02:56.4]} 9. Re1 {[%clk 0:03:01]} 9... d6 {[%clk 0:02:54.6]}
10. Nxc6 {[%clk 0:02:45.4]} 10... Bxc6 {[%clk 0:02:28.7]} 11. Nd5 {[%clk
0:02:45.1]} 11... Qb7 {[%clk 0:01:50.6]} 12. Bf4 {[%clk 0:02:19.7]} 12... Rd8
{[%clk 0:01:32.3]} 13. Nb4 {[%clk 0:02:11]} 13... e5 {[%clk 0:01:20.9]} 14. Bg5
{[%clk 0:02:06]} 14... Be7 {[%clk 0:01:11.8]} 15. Bxe7 {[%clk 0:02:05]} 15...
Nxe7 {[%clk 0:01:12.7]} 16. Nxc6 {[%clk 0:02:04.3]} 16... Nxc6 {[%clk
0:01:10.9]} 17. Qd5 {[%clk 0:01:56.4]} 17... O-O {[%clk 0:01:08.5]} 18. c3
{[%clk 0:01:56.1]} 18... Qb6 {[%clk 0:01:02.2]} 19. a4 {[%clk 0:01:27.3]} 19...
b4 {[%clk 0:01:01.9]} 20. a5 {[%clk 0:01:22.8]} 20... Qc7 {[%clk 0:00:49]} 21.
Rec1 {[%clk 0:01:22.5]} 21... Ne7 {[%clk 0:00:44.3]} 22. Qd3 {[%clk 0:01:20.3]}
22... b3 {[%clk 0:00:43.9]} 23. c4 {[%clk 0:01:17.4]} 23... Rb8 {[%clk
0:00:43.7]} 24. Rc3 {[%clk 0:01:13.8]} 24... Nc6 {[%clk 0:00:42.6]} 25. Rxb3
{[%clk 0:01:10.1]} 25... Rxb3 {[%clk 0:00:40.8]} 26. Qxb3 {[%clk 0:01:11]} 26...
Nxa5 {[%clk 0:00:40.7]} 27. Qc3 {[%clk 0:01:10.4]} 27... Nc6 {[%clk 0:00:15.3]}
28. Rxa6 {[%clk 0:01:09.8]} 28... Nd4 {[%clk 0:00:12.9]} 29. Kf1 {[%clk
0:00:58.8]} 29... Rc8 {[%clk 0:00:11]} 30. b3 {[%clk 0:00:57.1]} 30... Qb7
{[%clk 0:00:10.1]} 31. Ra3 {[%clk 0:00:55.2]} 31... Rb8 {[%clk 0:00:10.1]} 32.
b4 {[%clk 0:00:46.4]} 32... h6 {[%clk 0:00:08.5]} 33. b5 {[%clk 0:00:46.3]}
33... Qc7 {[%clk 0:00:03.6]} 34. Ra4 {[%clk 0:00:34]} 34... Rxb5 {[%clk
0:00:02.1]} 35. Bh3 {[%clk 0:00:26.5]} 35... Rb1+ {[%clk 0:00:01.8]} 36. Kg2
{[%clk 0:00:26.7]} 36... Kh7 {[%clk 0:00:01.4]} 37. Bf5+ {[%clk 0:00:24.5]}
37... g6 {[%clk 0:00:01.5]} 38. Bg4 {[%clk 0:00:24]} 38... Qc6 {[%clk
0:00:02.2]} 39. Bf3 {[%clk 0:00:22.4]} 39... Qxa4 {[%clk 0:00:01.5]} 40. c5
{[%clk 0:00:21.2]} 40... Nxf3 {[%clk 0:00:01.6]} 41. Qxf3 {[%clk 0:00:20.2]} 1-0

[Event "Early-Titled-Tuesday-Blitz-February-27-2024"]
[Site "Chess.com"]
[Date "2024.02.27"]
[Round "4"]
[White "CM_rui"]
[Black "Chessmissile07"]
[Result "0-1"]
[WhiteElo "2605"]
[BlackElo "2895"]
[TimeControl "180+1"]
[EndTime "8:38:16 PST"]
[Termination "Chessmissile07 won by checkmate"]

1. e4 {[%clk 0:03:00.9]} 1... a6 {[%clk 0:02:57.1]} 2. d4 {[%clk 0:03:00.7]}
2... d5 {[%clk 0:02:56]} 3. exd5 {[%clk 0:02:57.7]} 3... Qxd5 {[%clk 0:02:56.9]}
4. Nc3 {[%clk 0:02:57.8]} 4... Qd6 {[%clk 0:02:56.9]} 5. Nf3 {[%clk 0:02:57.7]}
5... Nf6 {[%clk 0:02:57]} 6. Bc4 {[%clk 0:02:56.8]} 6... Bg4 {[%clk 0:02:52.5]}
7. O-O {[%clk 0:02:48]} 7... Nc6 {[%clk 0:02:50.9]} 8. d5 {[%clk 0:02:41.5]}
8... Bxf3 {[%clk 0:02:22.4]} 9. Qxf3 {[%clk 0:02:42.4]} 9... Ne5 {[%clk
0:02:22.6]} 10. Qe2 {[%clk 0:02:41.6]} 10... Nxc4 {[%clk 0:02:22.4]} 11. Qxc4
{[%clk 0:02:42.5]} 11... c6 {[%clk 0:02:10.8]} 12. dxc6 {[%clk 0:02:03.4]} 12...
Qxc6 {[%clk 0:02:11.7]} 13. Qb3 {[%clk 0:01:52.8]} 13... e6 {[%clk 0:02:09.1]}
14. Bf4 {[%clk 0:01:40.8]} 14... Be7 {[%clk 0:02:05.8]} 15. Rad1 {[%clk
0:01:36.2]} 15... O-O {[%clk 0:02:06]} 16. Rd3 {[%clk 0:01:36]} 16... Rfd8
{[%clk 0:02:03.1]} 17. Rfd1 {[%clk 0:01:21.9]} 17... Rxd3 {[%clk 0:02:02.7]} 18.
Rxd3 {[%clk 0:01:22.8]} 18... Rc8 {[%clk 0:01:52.5]} 19. h3 {[%clk 0:01:18.3]}
19... b5 {[%clk 0:01:51.6]} 20. a3 {[%clk 0:01:14]} 20... h6 {[%clk 0:01:40.4]}
21. Kh2 {[%clk 0:01:00]} 21... Nh5 {[%clk 0:01:29]} 22. Be5 {[%clk 0:01:00.3]}
22... Qc5 {[%clk 0:01:13.2]} 23. f4 {[%clk 0:00:47.7]} 23... Bf6 {[%clk
0:01:00.5]} 24. Ne4 {[%clk 0:00:22.2]} 24... Qxc2 {[%clk 0:00:56.2]} 25. Nxf6+
{[%clk 0:00:22.1]} 25... gxf6 {[%clk 0:00:52.3]} 26. Bd6 {[%clk 0:00:04.7]}
26... Qxb3 {[%clk 0:00:39.8]} 27. Rxb3 {[%clk 0:00:05.6]} 27... Rd8 {[%clk
0:00:25.9]} 28. Be7 {[%clk 0:00:05.7]} 28... Rd7 {[%clk 0:00:24.9]} 29. Bb4
{[%clk 0:00:04.9]} 29... Nxf4 {[%clk 0:00:23.7]} 30. Rg3+ {[%clk 0:00:05.3]}
30... Ng6 {[%clk 0:00:21.8]} 31. Bc3 {[%clk 0:00:05.7]} 31... e5 {[%clk
0:00:20.6]} 32. Rf3 {[%clk 0:00:06.5]} 32... Kg7 {[%clk 0:00:18.7]} 33. Kg3
{[%clk 0:00:07.1]} 33... Nf4 {[%clk 0:00:18.4]} 34. Rf2 {[%clk 0:00:03.3]} 34...
Rd3+ {[%clk 0:00:16.6]} 35. Kg4 {[%clk 0:00:03.7]} 35... Kg6 {[%clk 0:00:16.2]}
36. g3 {[%clk 0:00:02.4]} 36... Nh5 {[%clk 0:00:07.2]} 37. h4 {[%clk 0:00:02.5]}
37... Rxg3# {[%clk 0:00:06.6]} 0-1

[Event "Early-Titled-Tuesday-Blitz-February-27-2024"]
[Site "Chess.com"]
[Date "2024.02.27"]
[Round "4"]
[White "Kristof_08"]
[Black "BrandonJiang123456"]
[Result "1-0"]
[WhiteElo "2439"]
[BlackElo "2202"]
[TimeControl "180+1"]
[EndTime "8:38:16 PST"]
[Termination "Kristof_08 won by resignation"]

1. Nf3 {[%clk 0:03:00.9]} 1... f5 {[%clk 0:02:59.3]} 2. g3 {[%clk 0:02:59.7]}
2... Nf6 {[%clk 0:02:58.7]} 3. Bg2 {[%clk 0:03:00.3]} 3... d6 {[%clk 0:02:59.2]}
4. d4 {[%clk 0:02:59.8]} 4... g6 {[%clk 0:02:57.2]} 5. b3 {[%clk 0:02:59.9]}
5... Bg7 {[%clk 0:02:57.5]} 6. Bb2 {[%clk 0:03:00.8]} 6... O-O {[%clk
0:02:57.6]} 7. O-O {[%clk 0:03:00.5]} 7... c6 {[%clk 0:02:57.7]} 8. c4 {[%clk
0:03:00.4]} 8... Na6 {[%clk 0:02:53.5]} 9. Nbd2 {[%clk 0:02:56.4]} 9... Qe8
{[%clk 0:02:51.4]} 10. Qc2 {[%clk 0:02:50.4]} 10... Nb4 {[%clk 0:02:49.7]} 11.
Qb1 {[%clk 0:02:50.2]} 11... Nh5 {[%clk 0:02:42.5]} 12. a3 {[%clk 0:02:47.4]}
12... Na6 {[%clk 0:02:42.3]} 13. e4 {[%clk 0:02:45.8]} 13... f4 {[%clk
0:02:41.2]} 14. e5 {[%clk 0:02:44]} 14... Bf5 {[%clk 0:02:39.6]} 15. Qd1 {[%clk
0:02:38.9]} 15... h6 {[%clk 0:02:33.8]} 16. Nh4 {[%clk 0:02:33.5]} 16... dxe5
{[%clk 0:02:12.8]} 17. dxe5 {[%clk 0:02:28]} 17... Bd3 {[%clk 0:02:12.7]} 18.
Re1 {[%clk 0:02:22.5]} 18... g5 {[%clk 0:02:10.1]} 19. Bf3 {[%clk 0:02:08.5]}
19... gxh4 {[%clk 0:01:51.8]} 20. Bxh5 {[%clk 0:02:07.6]} 20... Bg6 {[%clk
0:01:52.2]} 21. Bg4 {[%clk 0:01:57.7]} 21... fxg3 {[%clk 0:01:50]} 22. hxg3
{[%clk 0:01:51.3]} 22... hxg3 {[%clk 0:01:48.7]} 23. fxg3 {[%clk 0:01:50.9]}
23... Nc5 {[%clk 0:01:49.3]} 24. Bd4 {[%clk 0:01:43]} 24... Nd3 {[%clk
0:01:48.2]} 25. Re3 {[%clk 0:01:38.6]} 25... Rd8 {[%clk 0:01:36.7]} 26. Nf3
{[%clk 0:01:37.4]} 26... c5 {[%clk 0:01:32.4]} 27. Be6+ {[%clk 0:01:19.5]} 27...
Kh8 {[%clk 0:01:20.7]} 28. Rxd3 {[%clk 0:01:17.3]} 28... Bxd3 {[%clk 0:01:17.7]}
29. Qxd3 {[%clk 0:01:16.6]} 29... cxd4 {[%clk 0:01:18.1]} 30. Nh4 {[%clk
0:01:15.5]} 30... Bxe5 {[%clk 0:00:44.9]} 31. Ng6+ {[%clk 0:01:13.7]} 31... Kg7
{[%clk 0:00:43]} 32. Nxe5 {[%clk 0:01:14.6]} 32... Qh5 {[%clk 0:00:41.2]} 33.
Re1 {[%clk 0:01:11.1]} 33... Rf6 {[%clk 0:00:39.2]} 34. Bg4 {[%clk 0:00:58.3]}
34... Qg5 {[%clk 0:00:37.9]} 35. Re4 {[%clk 0:00:40.5]} 35... Rdf8 {[%clk
0:00:30.4]} 36. Qe2 {[%clk 0:00:17.2]} 36... Qc1+ {[%clk 0:00:29.5]} 37. Kg2
{[%clk 0:00:15.7]} 37... Rf1 {[%clk 0:00:23.4]} 38. Nf3 {[%clk 0:00:15.1]} 38...
Rd1 {[%clk 0:00:11.9]} 39. Rxe7+ {[%clk 0:00:14.5]} 39... Kg8 {[%clk 0:00:09.5]}
40. Qe6+ {[%clk 0:00:13.8]} 40... Kh8 {[%clk 0:00:09]} 41. Qe5+ {[%clk
0:00:14.2]} 1-0